fUST/lending_fUST_20250129
["ID","MTS","AMOUNT","RATE_DAILY","PERIOD"]
[350764252,1738113045219,-167.0,0.00018034,2]
[350764253,1738113045231,-500.0,0.00018082,2]
[350764254,1738113045241,-500.0,0.00018082,2]
[350764255,1738113045250,-743.79,0.00018082,2]
[350764256,1738113045260,-1181.14,0.00018082,2]
[350764257,1738113045270,-3621.36,0.00018082,2]
[350764258,1738113045280,-500.0,0.00018082,2]
[350764259,1738113045291,-500.0,0.00018082,2]
[350764260,1738113045300,-500.0,0.00018082,2]
[350764261,1738113045310,-507.63,0.00018082,2]
[350764262,1738113045320,-500.0,0.00018082,2]
[350764263,1738113045330,-500.0,0.00018082,2]
[350764264,1738113045339,-1067.03,0.00018082,2]
[350764265,1738113045348,-500.0,0.00018082,2]
[350764266,1738113045358,-1249.55,0.00018082,2]
[350764267,1738113045367,-151.0,0.00018116,2]
[350764268,1738113045376,-151.0,0.00018116,2]
[350764269,1738113045385,-150.0,0.00018117,2]
[350764270,1738113045395,-150.0,0.00018117,2]
[350764271,1738113045406,-150.0,0.00018117,2]
[350764272,1738113045415,-537.0,0.00018117,2]
[350764273,1738113045427,-2043.0,0.00018117,2]
[350764274,1738113045437,-2303.0,0.00018117,2]
[350764275,1738113045447,-160.0,0.0001815,6]
[350764276,1738113045457,-8796.85,0.000182,2]
[350764277,1738113045467,-11534.2,0.000182,2]
[350764278,1738113045478,-500.0,0.00018219,2]
[350764279,1738113045488,-500.0,0.00018219,2]
[350764280,1738113045498,-743.79,0.00018219,2]
[350764281,1738113045509,-1181.14,0.00018219,2]
[350764282,1738113045519,-3621.36,0.00018219,2]
[350764283,1738113045529,-500.0,0.00018219,2]
[350764284,1738113045539,-500.0,0.00018219,2]
[350764285,1738113045548,-500.0,0.00018219,2]
[350764286,1738113045557,-507.63,0.00018219,2]
[350764287,1738113045568,-500.0,0.00018219,2]
[350764288,1738113045577,-500.0,0.00018219,2]
[350764289,1738113045587,-1067.03,0.00018219,2]
[350764290,1738113045596,-500.0,0.00018219,2]
[350764291,1738113045606,-1249.55,0.00018219,2]
[350764292,1738113045617,-224.846768,0.00018356,2]
[350764293,1738113045627,-224.846768,0.00018356,2]
[350764294,1738113045637,-500.0,0.00018356,2]
[350764295,1738113045647,-500.0,0.00018356,2]
[350764296,1738113045657,-743.79,0.00018356,2]
[350764297,1738113045667,-1181.14,0.00018356,2]
[350764298,1738113045676,-3621.36,0.00018356,2]
[350764299,1738113045687,-500.0,0.00018356,2]
[350764300,1738113045697,-500.0,0.00018356,2]
[350764301,1738113045706,-500.0,0.00018356,2]
[350764302,1738113045715,-507.63,0.00018356,2]
[350764303,1738113045725,-500.0,0.00018356,2]
[350764304,1738113045737,-500.0,0.00018356,2]
[350764305,1738113045746,-1067.03,0.00018356,2]
[350764306,1738113045756,-500.0,0.00018356,2]
[350764307,1738113045766,-1249.55,0.00018356,2]
[350764308,1738113045775,-307.0,0.0001837,2]
[350764309,1738113045785,-160.0,0.00018385,7]
[350764310,1738113045794,-164.76261169,0.00018385,5]
[350764311,1738113045804,-1000.0,0.00018392,2]
[350764312,1738113045813,-466.0,0.000184,2]
[350764313,1738113045823,-500.0,0.00018493,2]
[350764314,1738113045832,-500.0,0.00018493,2]
[350764315,1738113045842,-743.79,0.00018493,2]
[350764316,1738113045851,-1181.14,0.00018493,2]
[350764317,1738113045862,-3621.36,0.00018493,2]
[350764318,1738113045871,-500.0,0.00018493,2]
[350764319,1738113045880,-360.07553594,0.00018493,2]
[350764320,1738113045890,-500.0,0.00018493,2]
[350764321,1738113045899,-507.63,0.00018493,2]
[350764322,1738113045909,-500.0,0.00018493,2]
[350764323,1738113045919,-500.0,0.00018493,2]
[350764324,1738113045928,-1067.03,0.00018493,2]
[350764325,1738113045937,-500.0,0.00018493,2]
[350764326,1738113045947,-1249.55,0.00018493,2]
[350764327,1738113045956,-151.0,0.000186,2]
[350764328,1738113045966,-500.0,0.0001863,2]
[350764330,1738113045976,-500.0,0.0001863,2]
[350764331,1738113045986,-743.79,0.0001863,2]
[350764332,1738113045995,-1181.14,0.0001863,2]
[350764333,1738113046005,-3621.36,0.0001863,2]
[350764334,1738113046015,-500.0,0.0001863,2]
[350764335,1738113046024,-500.0,0.0001863,2]
[350764336,1738113046034,-507.63,0.0001863,2]
[350764337,1738113046044,-500.0,0.0001863,2]
[350764338,1738113046053,-500.0,0.0001863,2]
[350764339,1738113046063,-1067.03,0.0001863,2]
[350764340,1738113046072,-281.58,0.0001863,2]
[350764341,1738113046081,-1249.55,0.0001863,2]
[350764342,1738113046091,-215.4605405,0.00018658,2]
[350764343,1738113046100,-153.0,0.00018659,2]
[350764344,1738113046110,-500.0,0.0001866,2]
[350764345,1738113046119,-500.0,0.0001875,2]
[350764346,1738113046128,-500.0,0.0001875,2]
[350764347,1738113046137,-329.91919106,0.0001875,2]
[350764348,1738113046147,-430.12191981,0.0001875,2]
[350764349,1738113046158,-500.0,0.0001875,2]
[350764350,1738113046168,-261.09254684,0.0001875,2]
[350764351,1738113046177,-151.66513854,0.0001875,2]
[350764352,1738113046187,-500.0,0.0001875,2]
[350764353,1738113046196,-500.0,0.0001875,2]
[350764354,1738113046205,-274.95,0.00018755,2]
[350764355,1738113046216,-500.0,0.00018767,2]
[350764356,1738113046225,-509.67336149,0.00018767,2]
[350764357,1738113046234,-743.79,0.00018767,2]
[350764358,1738113046244,-1181.14,0.00018767,2]
[350764360,1738113046254,-3621.36,0.00018767,2]
[350764361,1738113046264,-606.39839109,0.00018767,2]
[350764362,1738113046273,-466.9871782,0.00018767,2]
[350764363,1738113046283,-507.63,0.00018767,2]
[350764364,1738113046292,-500.0,0.00018767,2]
[350764365,1738113046301,-411.30943276,0.00018767,2]
[350764367,1738113046406,-1067.03,0.00018767,2]
[350764368,1738113046417,-1249.55,0.00018767,2]
[350764369,1738113046427,-252.0607995,0.00018776,2]
[350764370,1738113046436,-151.0,0.00018859,4]
[350764371,1738113046445,-13245.59911628,0.00018879,2]
[350764372,1738113046455,-152.724134,0.00018885,2]
[350764373,1738113046466,-152.724134,0.00018885,2]
[350764374,1738113046475,-3467.11578248,0.000189,2]
[350764375,1738113046485,-151.0,0.000189,2]
[350764376,1738113046495,-6563.42236993,0.000189,2]
[350764377,1738113046504,-151.0,0.000189,2]
[350764378,1738113046514,-500.0,0.00018904,2]
[350764379,1738113046523,-743.79,0.00018904,2]
[350764380,1738113046534,-3621.36,0.00018904,2]
[350764381,1738113046543,-1181.14,0.00018904,2]
[350764382,1738113046553,-507.63,0.00018904,2]
[350764383,1738113046563,-500.0,0.00018904,2]
[350764384,1738113046572,-1067.03,0.00018904,2]
[350764385,1738113046581,-1249.55,0.00018904,2]
[350764386,1738113046591,-3039.91794278,0.00019,4]
[350764387,1738113046601,-2435.8959305,0.00019,2]
[350764388,1738113046610,-1631.73103893,0.00019,2]
[350764389,1738113046619,-2000.000001,0.00019,2]
[350764390,1738113046628,-1109.612772,0.00019,2]
[350764391,1738113046637,-302.8183302,0.00019,2]
[350764392,1738113046647,-302.8183302,0.00019,2]
[350764393,1738113046657,-604.11638187,0.00019,2]
[350764394,1738113046667,-500.0,0.00019,2]
[350764395,1738113046676,-500.0,0.00019041,2]
[350764396,1738113046686,-743.79,0.00019041,2]
[350764397,1738113046696,-3621.36,0.00019041,2]
[350764398,1738113046706,-1181.14,0.00019041,2]
[350764399,1738113046715,-151.0,0.00019041,2]
[350764400,1738113046728,-151.0,0.00019041,2]
[350764401,1738113046738,-507.63,0.00019041,2]
[350764402,1738113046748,-405.86985498,0.00019041,2]
[350764403,1738113046757,-1067.03,0.00019041,2]
[350764404,1738113046767,-1249.55,0.00019041,2]
[350764405,1738113046776,-151.0,0.00019098,2]
[350764406,1738113046785,-16144.39440661,0.00019099,2]
[350764407,1738113046794,-300.0,0.000191,8]
[350764408,1738113046803,-155.0,0.00019173,2]
[350764409,1738113046814,-155.0,0.00019173,2]
[350764410,1738113046825,-300.0,0.00019173,2]
[350764411,1738113046834,-57598.77840295,0.00019178,2]
[350764412,1738113046843,-619.67,0.00019178,2]
[350764413,1738113046852,-619.67,0.00019178,2]
[350764414,1738113046861,-619.67,0.00019178,2]
[350764415,1738113046870,-619.67,0.00019178,2]
[350764416,1738113046879,-619.67,0.00019178,2]
[350764417,1738113046888,-619.67,0.00019178,2]
[350764418,1738113046898,-619.67,0.00019178,2]
[350764419,1738113046910,-619.67,0.00019178,2]
[350764420,1738113046919,-619.67,0.00019178,2]
[350764421,1738113046928,-619.67,0.00019178,2]
[350764422,1738113046937,-619.67,0.00019178,2]
[350764423,1738113046947,-619.67,0.00019178,2]
[350764424,1738113046956,-619.67,0.00019178,2]
[350764425,1738113046965,-619.67,0.00019178,2]
[350764426,1738113046974,-619.67,0.00019178,2]
[350764427,1738113046984,-619.67,0.00019178,2]
[350764428,1738113046993,-619.67,0.00019178,2]
[350764429,1738113047003,-619.67,0.00019178,2]
[350764430,1738113047012,-619.67,0.00019178,2]
[350764431,1738113047022,-619.67,0.00019178,2]
[350764432,1738113047032,-619.67,0.00019178,2]
[350764433,1738113047041,-500.0,0.00019178,2]
[350764434,1738113047051,-500.0,0.00019178,2]
[350764435,1738113047061,-500.0,0.00019178,2]
[350764436,1738113047070,-500.0,0.00019178,2]
[350764437,1738113047079,-500.0,0.00019178,2]
[350764438,1738113047088,-500.0,0.00019178,2]
[350764439,1738113047098,-500.0,0.00019178,2]
[350764440,1738113047107,-470.4817365,0.00019178,2]
[350764441,1738113047116,-151.0,0.00019178,2]
[350764442,1738113047125,-500.0,0.00019178,2]
[350764443,1738113047135,-500.0,0.00019178,2]
[350764444,1738113047144,-500.0,0.00019178,2]
[350764445,1738113047155,-500.0,0.00019178,2]
[350764446,1738113047164,-500.0,0.00019178,2]
[350764447,1738113047174,-500.0,0.00019178,2]
[350764448,1738113047183,-500.0,0.00019178,2]
[350764449,1738113047192,-500.0,0.00019178,2]
[350764450,1738113047201,-500.0,0.00019178,2]
[350764451,1738113047211,-500.0,0.00019178,2]
[350764452,1738113047220,-500.0,0.00019178,2]
[350764453,1738113047229,-400.0,0.00019178,2]
[350764454,1738113047240,-224.846768,0.00019178,2]
[350764455,1738113047249,-224.846768,0.00019178,2]
[350764456,1738113047258,-224.846768,0.00019178,2]
[350764457,1738113047268,-224.846768,0.00019178,2]
[350764458,1738113047278,-500.0,0.00019178,2]
[350764459,1738113047287,-151.0,0.00019178,2]
[350764460,1738113047297,-743.79,0.00019178,2]
[350764461,1738113047306,-3621.36,0.00019178,2]
[350764462,1738113047316,-1181.14,0.00019178,2]
[350764463,1738113047325,-152.724134,0.00019178,2]
[350764464,1738113047335,-500.0,0.00019178,7]
[350764465,1738113047344,-152.724134,0.00019178,2]
[350764466,1738113047354,-500.0,0.00019178,2]
[350764467,1738113047363,-151.0,0.00019178,2]
[350764468,1738113047372,-151.0,0.00019178,2]
[350764469,1738113047381,-507.63,0.00019178,2]
[350764470,1738113047390,-1067.03,0.00019178,2]
[350764471,1738113047400,-500.0,0.00019178,2]
[350764472,1738113047412,-172.043055,0.00019178,2]
[350764473,1738113047421,-182.673273,0.00019178,2]
[350764474,1738113047430,-302.8183302,0.0001919,2]
[350764475,1738113047439,-302.8183302,0.0001919,2]
[350764476,1738113047448,-151.0,0.000192,2]
[350764477,1738113047457,-151.0,0.00019221,4]
[350764478,1738113047467,-154.0,0.00019256,2]
[350764479,1738113047476,-154.0,0.00019256,2]
[350764480,1738113047485,-154.0,0.00019256,2]
[350764481,1738113047494,-154.0,0.00019256,2]
[350764482,1738113047504,-1000.0,0.00019298,2]
[350764483,1738113047513,-1000.0,0.00019298,2]
[350764484,1738113047523,-1000.0,0.00019298,2]
[350764485,1738113047532,-1069.55610983,0.00019298,2]
[350764486,1738113047541,-1000.0,0.00019298,2]
[350764487,1738113047550,-151.0,0.000193,2]
[350764488,1738113047560,-1200.0,0.00019314,2]
[350764489,1738113047569,-151.0,0.00019314,2]
[350764490,1738113047578,-500.0,0.00019314,2]
[350764491,1738113047588,-619.67,0.00019315,2]
[350764492,1738113047598,-581.20194495,0.00019315,2]
[350764493,1738113047608,-743.79,0.00019315,2]
[350764494,1738113047618,-3621.36,0.00019315,2]
[350764495,1738113047627,-1181.14,0.00019315,2]
[350764496,1738113047637,-507.63,0.00019315,2]
[350764497,1738113047647,-1067.03,0.00019315,2]
[350764498,1738113047658,-251.42042201,0.0001932,2]
[350764499,1738113047668,-151.20110552,0.00019329,2]
[350764500,1738113047678,-500.67709918,0.00019329,2]
[350764501,1738113047688,-153.0,0.00019368,2]
[350764502,1738113047697,-153.0,0.00019368,2]
[350764503,1738113047707,-153.0,0.00019368,2]
[350764504,1738113047716,-156.0,0.00019368,2]
[350764505,1738113047726,-159.0,0.00019368,2]
[350764506,1738113047740,-159.0,0.00019368,2]
[350764507,1738113047750,-159.0,0.00019368,2]
[350764508,1738113047759,-159.0,0.00019368,2]
[350764509,1738113047769,-159.0,0.00019368,2]
[350764510,1738113047781,-159.0,0.00019368,2]
[350764511,1738113047790,-159.0,0.00019368,2]
[350764512,1738113047800,-159.0,0.00019368,2]
[350764513,1738113047809,-159.0,0.00019368,2]
[350764514,1738113047820,-159.0,0.00019368,2]
[350764515,1738113047830,-159.0,0.00019368,2]
[350764516,1738113047839,-165.99,0.00019368,2]
[350764517,1738113047849,-302.8183302,0.0001938,2]
[350764518,1738113047859,-302.8183302,0.0001938,2]
[350764519,1738113047868,-500.31441464,0.00019394,2]
[350764520,1738113047967,-500.0,0.000194,2]
[350764521,1738113047978,-150.0,0.000194,2]
[350764522,1738113047988,-500.0,0.00019452,2]
[350764523,1738113047998,-619.67,0.00019452,2]
[350764524,1738113048008,-743.79,0.00019452,2]
[350764525,1738113048018,-3621.36,0.00019452,2]
[350764526,1738113048028,-1181.14,0.00019452,2]
[350764527,1738113048038,-507.63,0.00019452,2]
[350764528,1738113048049,-1067.03,0.00019452,2]
[350764529,1738113048058,-151.0,0.00019472,2]
[350764530,1738113048068,-500.0,0.00019473,2]
[350764531,1738113048078,-500.0,0.00019473,2]
[350764532,1738113048087,-500.0,0.00019473,2]
[350764533,1738113048097,-500.0,0.00019473,2]
[350764534,1738113048107,-521.03295055,0.00019473,2]
[350764535,1738113048116,-625.62868164,0.00019473,2]
[350764536,1738113048131,-604.24944047,0.00019473,2]
[350764537,1738113048141,-500.0,0.00019473,2]
[350764538,1738113048151,-58636.03383607,0.000195,15]
[350764539,1738113048279,-255.625,0.000195,15]
[350764540,1738113048855,225.854457,0.00013973,2]
[350764541,1738113048930,-500.0,0.00016431,2]
[350764542,1738113048940,-247.71389001,0.00016431,2]
[350764543,1738113048950,-500.0,0.00016431,2]
[350764544,1738113048960,-500.0,0.00016431,2]
[350764545,1738113048970,-500.0,0.00016431,2]
[350764546,1738113048980,-639.48731324,0.00016431,2]
[350764547,1738113048990,-500.0,0.00016431,2]
[350764548,1738113049001,-500.0,0.00016431,2]
[350764549,1738113049010,-500.0,0.00016431,2]
[350764550,1738113049020,-500.0,0.00016431,2]
[350764551,1738113049030,-500.0,0.00016431,2]
[350764552,1738113049041,-500.0,0.00016431,2]
[350764553,1738113049051,-500.0,0.00016431,2]
[350764554,1738113049062,-500.0,0.00016431,2]
[350764555,1738113049072,-500.0,0.00016431,2]
[350764556,1738113049082,-500.0,0.00016431,2]
[350764557,1738113049092,-500.0,0.00016431,2]
[350764558,1738113049103,-500.0,0.00016431,2]
[350764559,1738113049113,-500.0,0.00016431,2]
[350764560,1738113049123,-500.0,0.00016431,2]
[350764561,1738113049134,-500.0,0.00016431,2]
[350764562,1738113049248,-500.0,0.00016431,2]
[350764563,1738113049259,-500.0,0.00016431,2]
[350764564,1738113049270,-500.0,0.00016431,2]
[350764565,1738113049281,-456.39744751,0.00016431,2]
[350764566,1738113049292,-500.0,0.00016431,2]
[350764567,1738113049303,-500.0,0.00016431,2]
[350764568,1738113049313,-500.0,0.00016431,2]
[350764569,1738113049324,-500.0,0.00016431,2]
[350764570,1738113049334,-500.0,0.00016431,2]
[350764571,1738113049344,-500.0,0.00016431,2]
[350764572,1738113049355,-500.0,0.00016431,2]
[350764573,1738113049365,-500.0,0.00016431,2]
[350764574,1738113049375,-500.0,0.00016431,2]
[350764575,1738113049385,-500.0,0.00016431,2]
[350764576,1738113049395,-500.0,0.00016431,2]
[350764577,1738113049409,-500.0,0.00016431,2]
[350764578,1738113049420,-500.0,0.00016431,2]
[350764579,1738113049430,-500.0,0.00016431,2]
[350764580,1738113049440,-500.0,0.00016431,2]
[350764581,1738113049451,-500.0,0.00016438,2]
[350764582,1738113049461,-268.81497396,0.00016438,2]
[350764583,1738113049472,-500.0,0.00016438,2]
[350764584,1738113049482,-500.0,0.00016438,2]
[350764585,1738113049492,-500.0,0.00016438,2]
[350764586,1738113049503,-500.0,0.00016438,2]
[350764587,1738113049513,-500.0,0.00016438,2]
[350764588,1738113049523,-589.48549143,0.00016438,2]
[350764589,1738113049534,-500.0,0.00016438,2]
[350764590,1738113049543,-538.57810268,0.00016438,2]
[350764591,1738113049555,-375.84,0.00016575,2]
[350764592,1738113049566,-15878.46459823,0.00017259,5]
[350764593,1738113049576,-500.0,0.00019178,2]
[350764594,1738113049585,-500.0,0.00019178,2]
[350764595,1738113049594,-500.0,0.00019178,2]
[350764596,1738113049604,-500.0,0.00019178,2]
[350764597,1738113049615,-500.0,0.00019178,2]
[350764598,1738113049625,-500.0,0.00019178,2]
[350764599,1738113049634,-500.0,0.00019178,2]
[350764600,1738113049645,-500.0,0.00019178,2]
[350764601,1738113049657,-500.0,0.00019178,2]
[350764602,1738113049667,-500.0,0.00019178,2]
[350764603,1738113049677,-500.0,0.00019178,2]
[350764604,1738113049686,-500.0,0.00019178,2]
[350764605,1738113049696,-500.0,0.00019178,2]
[350764606,1738113049706,-500.0,0.00019178,2]
[350764607,1738113049715,-1249.55,0.00019178,2]
[350764608,1738113049726,-500.0,0.00019178,2]
[350764609,1738113049739,-500.0,0.00019178,2]
[350764610,1738113049749,-500.0,0.00019178,2]
[350764611,1738113049759,-500.0,0.00019178,2]
[350764612,1738113049770,-500.0,0.00019178,2]
[350764613,1738113049781,-500.0,0.00019178,2]
[350764614,1738113049791,-500.0,0.00019178,2]
[350764615,1738113049801,-500.0,0.00019178,2]
[350764616,1738113049812,-500.0,0.00019178,2]
[350764617,1738113049822,-500.0,0.00019178,2]
[350764618,1738113049831,-500.0,0.00019178,2]
[350764619,1738113049842,-500.0,0.00019178,2]
[350764620,1738113049852,-500.0,0.00019178,2]
[350764621,1738113049862,-500.0,0.00019178,2]
[350764622,1738113049873,-500.0,0.00019178,2]
[350764623,1738113049882,-500.0,0.00019178,2]
[350764624,1738113049893,-500.0,0.00019178,2]
[350764625,1738113049903,-500.0,0.00019178,2]
[350764626,1738113049914,-500.0,0.00019178,2]
[350764627,1738113049923,-333.85132787,0.00019178,2]
[350764628,1738113049933,-500.0,0.00019178,2]
[350764629,1738113049943,-500.0,0.00019178,2]
[350764630,1738113049953,-500.0,0.00019178,2]
[350764631,1738113049963,-1249.55,0.00019315,2]
[350764632,1738113049973,-1249.55,0.00019452,2]
[350764633,1738113049983,-348636.96339511,0.000195,15]
[350764634,1738113050026,-83931.17409711,0.000195,15]
[350764635,1738113050047,-1664.86983028,0.000195,15]
[350764636,1738113050059,-42736.12222467,0.000195,15]
[350764637,1738113050114,-395.0,0.00017581,2]
[350764638,1738113050125,-1038.54539871,0.000195,15]
[350764639,1738113050136,-3229.0620703,0.000195,15]
[350764640,1738113050148,-721.31350851,0.000195,15]
[350764641,1738113050161,-126200.8822444,0.000195,15]
[350764642,1738113050252,-1135.53859873,0.00016338,2]
[350764643,1738113050263,-500.0,0.00016438,2]
[350764644,1738113050272,-157.83895087,0.00016438,2]
[350764645,1738113050284,-434.98104913,0.00016438,2]
[350764646,1738113050295,-8463.4713888,0.000195,15]
[350764647,1738113050307,-1145.79494455,0.000195,15]
[350764648,1738113050351,-6290.78821705,0.000194,2]
[350764649,1738113050360,-20800.83458255,0.000195,15]
[350764650,1738113050372,-2977.79190184,0.000195,15]
[350764651,1738113050383,-4077.15987064,0.000195,15]
[350764652,1738113050396,-330.85826451,0.000195,15]
[350764654,1738113618504,519.90583074,0.00015101,2]
[350764662,1738114103048,222.802136,0.00013973,2]
[350764681,1738114232764,-300.0,0.00015341,2]
[350764682,1738114232775,-225.91757582,0.00015342,2]
[350764683,1738114232786,-1114.9967732,0.00015342,2]
[350764684,1738114232798,-3255.12384721,0.00015342,2]
[350764685,1738114232810,-3264.65671956,0.00015342,2]
[350764686,1738114232854,-3838.70900301,0.00015342,2]
[350764687,1738114232864,-12695.85917087,0.00015447,2]
[350764688,1738114232874,-12695.85917087,0.0001562,2]
[350764689,1738114232883,-12695.85917087,0.00015897,2]
[350764690,1738114232893,-500.0,0.00016225,2]
[350764691,1738114232904,-618.98637587,0.00016225,2]
[350764692,1738114232913,-500.0,0.00016225,2]
[350764693,1738114232923,-500.0,0.00016225,2]
[350764694,1738114232932,-500.0,0.00016225,2]
[350764695,1738114232942,-500.0,0.00016225,2]
[350764696,1738114232952,-500.0,0.00016225,2]
[350764697,1738114232962,-500.0,0.00016225,2]
[350764698,1738114232972,-184.90957532,0.00016225,2]
[350764699,1738114232981,-500.0,0.00016225,2]
[350764700,1738114232991,-500.0,0.00016225,2]
[350764701,1738114233000,-500.0,0.00016225,2]
[350764702,1738114233010,-500.0,0.00016225,2]
[350764703,1738114233020,-500.0,0.00016225,2]
[350764704,1738114233030,-500.0,0.00016225,2]
[350764705,1738114233040,-500.0,0.00016225,2]
[350764706,1738114233050,-500.0,0.00016225,2]
[350764707,1738114233060,-500.0,0.00016225,2]
[350764708,1738114233070,-500.0,0.00016225,2]
[350764709,1738114233080,-500.0,0.00016225,2]
[350764710,1738114233090,-500.0,0.00016225,2]
[350764711,1738114233099,-500.0,0.00016225,2]
[350764712,1738114233110,-500.0,0.00016225,2]
[350764713,1738114233123,-500.0,0.00016225,2]
[350764714,1738114233132,-500.0,0.00016225,2]
[350764715,1738114233142,-500.0,0.00016225,2]
[350764716,1738114233152,-12695.85917087,0.00016395,2]
[350764717,1738114233163,-431.28655378,0.00016437,2]
[350764718,1738114233173,-500.0,0.00016438,2]
[350764719,1738114233183,-500.0,0.00016438,2]
[350764720,1738114233193,-500.0,0.00016438,2]
[350764721,1738114233204,-500.0,0.00016438,2]
[350764722,1738114233214,-500.0,0.00016438,2]
[350764723,1738114233224,-500.0,0.00016438,2]
[350764724,1738114233235,-450.68598902,0.00016438,2]
[350764725,1738114233245,-500.0,0.00016438,2]
[350764726,1738114233255,-269.30526095,0.00016438,2]
[350764727,1738114233265,-500.0,0.00016438,2]
[350764728,1738114233276,-509.13,0.00016438,2]
[350764729,1738114233286,-500.0,0.00016438,2]
[350764730,1738114233297,-240.75,0.00016438,2]
[350764731,1738114233307,-500.0,0.00016438,2]
[350764732,1738114233316,-500.0,0.00016438,2]
[350764733,1738114233326,-500.0,0.00016438,2]
[350764734,1738114233336,-500.0,0.00016438,2]
[350764735,1738114233345,-500.0,0.00016438,2]
[350764736,1738114233355,-500.0,0.00016438,2]
[350764737,1738114233365,-500.0,0.00016438,2]
[350764738,1738114233375,-500.0,0.00016438,2]
[350764739,1738114233384,-500.0,0.00016438,2]
[350764740,1738114233394,-500.0,0.00016438,2]
[350764741,1738114233404,-510.83626275,0.00016438,2]
[350764742,1738114233415,-51.50387189,0.00016438,2]
[350764743,1738114233605,-500.0,0.00016225,2]
[350764744,1738114233615,-500.0,0.00016225,2]
[350764745,1738114233625,-448.49612811,0.00016438,2]
[350764746,1738114233635,-436.62868547,0.00016438,2]
[350764747,1738114233644,-500.0,0.00016438,2]
[350764748,1738114233653,-500.0,0.00016438,2]
[350764749,1738114233663,-500.0,0.00016438,2]
[350764750,1738114233672,-455.70709484,0.00016438,2]
[350764751,1738114233681,-500.0,0.00016438,2]
[350764752,1738114233690,-549.28557075,0.00016438,2]
[350764753,1738114233700,-500.0,0.00016438,2]
[350764754,1738114233710,-500.0,0.00016438,2]
[350764755,1738114233720,-500.0,0.00016438,2]
[350764756,1738114233729,-500.0,0.00016438,2]
[350764757,1738114233739,-500.0,0.00016438,2]
[350764758,1738114233749,-639.30018871,0.00016438,2]
[350764759,1738114233759,-500.0,0.00016438,2]
[350764760,1738114233768,-500.0,0.00016438,2]
[350764761,1738114233777,-500.0,0.00016438,2]
[350764762,1738114233786,-500.0,0.00016438,2]
[350764763,1738114233796,-500.0,0.00016438,2]
[350764764,1738114233806,-500.0,0.00016438,2]
[350764765,1738114233815,-500.0,0.00016438,2]
[350764766,1738114233824,-500.0,0.00016438,2]
[350764767,1738114233834,-500.0,0.00016438,2]
[350764768,1738114233843,-500.0,0.00016438,2]
[350764769,1738114233852,-500.0,0.00016438,2]
[350764770,1738114233862,-500.0,0.00016438,2]
[350764771,1738114233871,-500.0,0.00016438,2]
[350764772,1738114233881,-500.0,0.00016438,2]
[350764773,1738114233890,-500.0,0.00016438,2]
[350764774,1738114233899,-500.0,0.00016438,2]
[350764775,1738114233908,-500.0,0.00016438,2]
[350764776,1738114233917,-500.0,0.00016438,2]
[350764777,1738114233926,-363.49508087,0.00016438,2]
[350764778,1738114233936,-502.82979385,0.00016438,2]
[350764779,1738114233945,-500.0,0.00016438,2]
[350764780,1738114233955,-500.0,0.00016438,2]